fUST/lending_fUST_20250725
["ID","MTS","AMOUNT","RATE_DAILY","PERIOD"]
[374670704,1753405888450,-500.0,0.00021917,2]
[374670705,1753405888460,-500.0,0.00021917,2]
[374670706,1753405888470,-500.0,0.00021917,2]
[374670707,1753405888479,-500.0,0.00021917,2]
[374670708,1753405888489,-500.0,0.00021917,2]
[374670709,1753405888499,-500.0,0.00021917,2]
[374670710,1753405888508,-500.0,0.00021917,2]
[374670711,1753405888519,-500.0,0.00021917,2]
[374670712,1753405888528,-500.0,0.00021917,2]
[374670713,1753405888538,-500.0,0.00021917,2]
[374670714,1753405888547,-151.0,0.00021918,2]
[374670715,1753405888558,-151.0,0.00021918,2]
[374670716,1753405888568,-151.0,0.00021918,2]
[374670717,1753405888578,-151.0,0.00021918,2]
[374670718,1753405888588,-151.0,0.00021918,2]
[374670719,1753405888601,-151.0,0.00021918,2]
[374670720,1753405888611,-151.0,0.00021918,2]
[374670721,1753405888621,-151.0,0.00021918,2]
[374670722,1753405888631,-151.0,0.00021918,2]
[374670723,1753405888640,-151.0,0.00021918,2]
[374670724,1753405888650,-291.38149683,0.00021918,2]
[374670725,1753405888659,-150.0,0.00021918,2]
[374670726,1753405888669,-839.14,0.00021951,2]
[374670727,1753405888678,-891.45,0.00021951,2]
[374670728,1753405888688,-3004.04,0.00021951,2]
[374670729,1753405888697,-808.95,0.00021951,2]
[374670730,1753405888707,-664.13,0.00021953,2]
[374670731,1753405888717,-8109.86,0.00021953,2]
[374670732,1753405888727,-4205.78,0.00021953,2]
[374670733,1753405888737,-828.63,0.00021953,2]
[374670734,1753405888746,-460.0,0.00021953,2]
[374670735,1753405888755,-1045.24,0.00021953,2]
[374670736,1753405888765,-876.12,0.00021953,2]
[374670737,1753405888774,-3080.87,0.00021953,2]
[374670738,1753405888784,-630.25,0.00021953,2]
[374670739,1753405888794,-2623.82,0.00021953,2]
[374670740,1753405888806,-1224.91,0.00021953,2]
[374670741,1753405888817,-729.01,0.00021953,2]
[374670742,1753405888828,-829.26,0.00021955,2]
[374670743,1753405888837,-641.73,0.00021955,2]
[374670744,1753405888849,-797.44,0.00021955,2]
[374670745,1753405888858,-1009.95,0.00021955,2]
[374670746,1753405888868,-1461.37,0.00021955,2]
[374670747,1753405888878,-873.27,0.00021955,2]
[374670748,1753405888888,-720.64,0.00021955,2]
[374670749,1753405888897,-460.0,0.00021955,2]
[374670750,1753405888907,-478.9,0.00021955,2]
[374670751,1753405888917,-2863.12,0.00021955,2]
[374670752,1753405888927,-570.91,0.00021955,2]
[374670753,1753405888937,-460.0,0.00021955,2]
[374670754,1753405888946,-1139.2,0.00021955,2]
[374670755,1753405888956,-576.02,0.00021955,2]
[374670756,1753405888966,-831.56,0.00021955,2]
[374670757,1753405888975,-1082.99,0.00021955,2]
[374670758,1753405888985,-1185.33,0.00021955,2]
[374670759,1753405888995,-1580.14,0.00021955,2]
[374670760,1753405889004,-460.0,0.00021955,2]
[374670761,1753405889015,-842.02,0.00021955,2]
[374670762,1753405889025,-630.13,0.00021955,2]
[374670763,1753405889035,-460.0,0.00021955,2]
[374670764,1753405889045,-825.34,0.00021955,2]
[374670765,1753405889055,-851.14,0.00021976,2]
[374670766,1753405889064,-460.0,0.00021976,2]
[374670767,1753405889077,-460.0,0.00021976,2]
[374670768,1753405889093,-460.0,0.00021976,2]
[374670769,1753405889108,-1129.03,0.00021976,2]
[374670770,1753405889119,-460.0,0.00021976,2]
[374670771,1753405889130,-1683.18517872,0.00021978,2]
[374670772,1753405889140,-460.0,0.00021998,2]
[374670773,1753405889150,-634.74,0.00021998,2]
[374670774,1753405889159,-151.0,0.00021998,7]
[374670775,1753405889169,-170.561542,0.00021998,7]
[374670776,1753405889179,-170.561542,0.00021998,7]
[374670777,1753405889336,-460.0,0.00021998,2]
[374670778,1753405889347,-1638.24,0.00021998,2]
[374670779,1753405889358,-1280.01,0.00021998,2]
[374670780,1753405889368,-516.35,0.00021998,2]
[374670781,1753405889377,-632.2,0.00021998,2]
[374670782,1753405889387,-1029.2,0.00021998,2]
[374670783,1753405889396,-6996.8,0.00021998,2]
[374670784,1753405889405,-2763.92,0.00021998,2]
[374670785,1753405889415,-4000.0,0.00022,4]
[374670786,1753405889424,-6044.21,0.00022,7]
[374670787,1753405889434,-1920.03,0.00022,7]
[374670788,1753405889443,-2652.43,0.00022,7]
[374670789,1753405889452,-166.67,0.00022,2]
[374670790,1753405889462,-239.84119403,0.00022014,2]
[374670791,1753405889472,-660.0,0.00022016,2]
[374670792,1753405889481,-151.0,0.00022038,7]
[374670793,1753405889490,-214.9,0.00022038,7]
[374670794,1753405889499,-214.9,0.00022038,7]
[374670795,1753405889508,-187.479922,0.00022073,7]
[374670796,1753405889517,-187.479922,0.00022073,7]
[374670797,1753405889526,-470.3,0.00022077,2]
[374670798,1753405889536,-797.25,0.00022096,2]
[374670799,1753405889552,-1339.86,0.00022096,2]
[374670800,1753405889567,-1455.26,0.00022096,2]
[374670801,1753405889576,-646.53,0.00022096,2]
[374670802,1753405889585,-689.47,0.00022096,2]
[374670803,1753405889598,-1116.98,0.00022096,2]
[374670804,1753405889607,-2881.55,0.00022096,2]
[374670805,1753405889616,-4319.45,0.00022096,2]
[374670806,1753405889624,-4169.87,0.00022096,2]
[374670807,1753405889634,-2789.02,0.00022096,2]
[374670808,1753405889642,-1289.13,0.00022096,2]
[374670809,1753405889652,-317.63465566,0.00022098,2]
[374670810,1753405889661,-552.15,0.00022098,2]
[374670811,1753405889670,-676.46,0.00022098,2]
[374670812,1753405889680,-904.33,0.00022098,2]
[374670813,1753405889689,-1156.4,0.00022098,2]
[374670814,1753405889698,-500.81,0.00022098,2]
[374670815,1753405889708,-680.32,0.00022098,2]
[374670816,1753405889716,-460.0,0.00022098,2]
[374670817,1753405889726,-1029.72,0.00022098,2]
[374670818,1753405889735,-723.77,0.00022098,2]
[374670819,1753405889744,-770.55,0.00022098,2]
[374670820,1753405889753,-1464.77,0.00022098,2]
[374670821,1753405889762,-1451.71,0.00022098,2]
[374670822,1753405889771,-460.0,0.00022098,2]
[374670823,1753405889780,-600.06,0.00022098,2]
[374670824,1753405889789,-460.0,0.00022098,2]
[374670825,1753405889798,-649.29,0.00022098,2]
[374670826,1753405889807,-632.98,0.00022098,2]
[374670827,1753405889817,-700.52,0.00022098,2]
[374670828,1753405889826,-570.48,0.00022098,2]
[374670829,1753405889836,-1352.89,0.00022098,2]
[374670830,1753405889849,-1205.96,0.00022098,2]
[374670831,1753405889859,-696.97,0.00022098,2]
[374670832,1753405889869,-500.0,0.00022098,2]
[374670833,1753405889878,-542.27,0.00022098,2]
[374670834,1753405889888,-625.29,0.00022098,2]
[374670835,1753405889897,-151.0,0.00022099,7]
[374670836,1753405889907,-191.267888,0.00022099,7]
[374670837,1753405889916,-2698.01,0.00022099,2]
[374670838,1753405889925,-550.66,0.00022099,2]
[374670839,1753405889934,-1284.55,0.00022099,2]
[374670840,1753405889943,-5026.12,0.00022099,2]
[374670841,1753405889952,-3778.26,0.00022099,2]
[374670842,1753405889962,-516.32,0.00022099,2]
[374670843,1753405889971,-232.905966,0.000221,7]
[374670844,1753405889980,-232.905966,0.000221,7]
[374670845,1753405889989,-151.0,0.000221,7]
[374670846,1753405889998,-257.323053,0.000221,7]
[374670847,1753405890007,-151.0,0.000221,7]
[374670848,1753405890016,-614.02,0.000221,2]
[374670849,1753405890026,-878.92,0.000221,2]
[374670850,1753405890036,-843.8,0.000221,2]
[374670851,1753405890044,-485.64,0.00022106,2]
[374670852,1753405890053,-1979.39,0.00022106,2]
[374670853,1753405890063,-631.28,0.00022106,2]
[374670854,1753405890074,-460.0,0.00022106,2]
[374670855,1753405890083,-942.95,0.00022106,2]
[374670856,1753405890096,-460.0,0.00022106,2]
[374670857,1753405890105,-497.3,0.00022106,2]
[374670858,1753405890117,-1681.11,0.00022106,2]
[374670859,1753405890126,-675.8,0.00022106,2]
[374670860,1753405890135,-460.0,0.00022106,2]
[374670861,1753405890146,-756.57,0.00022106,2]
[374670862,1753405890155,-821.38,0.00022106,2]
[374670863,1753405890164,-526.09,0.00022106,2]
[374670864,1753405890174,-759.71,0.00022106,2]
[374670865,1753405890183,-524.24,0.00022106,2]
[374670866,1753405890193,-460.0,0.00022106,2]
[374670867,1753405890201,-738.71,0.00022106,2]
[374670868,1753405890211,-1149.0,0.00022107,2]
[374670869,1753405890220,-1079.0,0.00022107,2]
[374670870,1753405890229,-600.0,0.00022108,2]
[374670871,1753405890238,-546.94,0.00022109,2]
[374670872,1753405890248,-548.26,0.00022109,2]
[374670873,1753405890257,-460.0,0.00022109,2]
[374670874,1753405890266,-460.0,0.00022109,2]
[374670875,1753405890275,-932.05,0.00022109,2]
[374670876,1753405890290,-460.0,0.00022109,2]
[374670877,1753405890299,-367.66829633,0.00022109,2]
[374670878,1753405890308,-698.6,0.00022109,2]
[374670879,1753405890318,-993.5,0.00022109,2]
[374670880,1753405890327,-164.9579112,0.0002211,2]
[374670881,1753405890338,-1000.0,0.00022112,2]
[374670882,1753405890349,-30025.04,0.000222,2]
[374670883,1753405890358,-839.14,0.00022225,2]
[374670884,1753405890367,-891.45,0.00022225,2]
[374670885,1753405890376,-3004.04,0.00022225,2]
[374670886,1753405890387,-808.95,0.00022225,2]
[374670887,1753405890396,-664.13,0.00022227,2]
[374670888,1753405890405,-8109.86,0.00022227,2]
[374670889,1753405890415,-4205.78,0.00022227,2]
[374670890,1753405890424,-828.63,0.00022227,2]
[374670891,1753405890433,-460.0,0.00022227,2]
[374670892,1753405890442,-1045.24,0.00022227,2]
[374670893,1753405890451,-876.12,0.00022227,2]
[374670894,1753405890461,-3080.87,0.00022227,2]
[374670895,1753405890470,-630.25,0.00022227,2]
[374670896,1753405890480,-2623.82,0.00022227,2]
[374670897,1753405890488,-1224.91,0.00022227,2]
[374670898,1753405890499,-729.01,0.00022227,2]
[374670899,1753405890508,-829.26,0.00022229,2]
[374670900,1753405890518,-641.73,0.00022229,2]
[374670901,1753405890527,-797.44,0.00022229,2]
[374670902,1753405890537,-1009.95,0.00022229,2]
[374670903,1753405890547,-1461.37,0.00022229,2]
[374670904,1753405890557,-873.27,0.00022229,2]
[374670905,1753405890566,-720.64,0.00022229,2]
[374670906,1753405890575,-460.0,0.00022229,2]
[374670907,1753405890585,-478.9,0.00022229,2]
[374670908,1753405890596,-2863.12,0.00022229,2]
[374670909,1753405890606,-570.91,0.00022229,2]
[374670910,1753405890616,-460.0,0.00022229,2]
[374670911,1753405890626,-1139.2,0.00022229,2]
[374670912,1753405890636,-576.02,0.00022229,2]
[374670913,1753405890646,-831.56,0.00022229,2]
[374670914,1753405890655,-1082.99,0.00022229,2]
[374670915,1753405890665,-1185.33,0.00022229,2]
[374670916,1753405890675,-1580.14,0.00022229,2]
[374670917,1753405890684,-460.0,0.00022229,2]
[374670918,1753405890694,-842.02,0.00022229,2]
[374670919,1753405890703,-630.13,0.00022229,2]
[374670920,1753405890713,-460.0,0.00022229,2]
[374670921,1753405890723,-825.34,0.00022229,2]
[374670922,1753405890732,-851.14,0.0002225,2]
[374670923,1753405890741,-430.49232355,0.0002225,2]
[374670924,1753405890751,-385.76382827,0.0002225,2]
[374670925,1753405890760,-460.0,0.0002225,2]
[374670926,1753405890769,-1129.03,0.0002225,2]
[374670927,1753405890779,-460.0,0.0002225,2]
[374670928,1753405890789,-337.72417334,0.00022272,2]
[374670929,1753405890799,-634.74,0.00022272,2]
[374670930,1753405890808,-460.0,0.00022272,2]
[374670931,1753405890817,-1638.24,0.00022272,2]
[374670932,1753405890827,-1280.01,0.00022272,2]
[374670933,1753405890836,-516.35,0.00022272,2]
[374670934,1753405890848,-632.2,0.00022272,2]
[374670935,1753405890858,-1029.2,0.00022272,2]
[374670936,1753405890868,-6996.8,0.00022272,2]
[374670937,1753405890878,-2763.92,0.00022272,2]
[374670938,1753405890887,-470.3,0.00022351,2]
[374670939,1753405890897,-797.25,0.0002237,2]
[374670940,1753405890906,-1339.86,0.0002237,2]
[374670941,1753405890915,-1455.26,0.0002237,2]
[374670942,1753405890925,-646.53,0.0002237,2]
[374670943,1753405890934,-689.47,0.0002237,2]
[374670944,1753405890944,-217.502981,0.0002237,7]
[374670945,1753405890953,-217.502977,0.0002237,7]
[374670946,1753405890963,-1116.98,0.0002237,2]
[374670947,1753405890972,-2881.55,0.0002237,2]
[374670948,1753405890982,-4319.45,0.0002237,2]
[374670949,1753405890992,-4169.87,0.0002237,2]
[374670950,1753405891001,-2789.02,0.0002237,2]
[374670951,1753405891011,-1289.13,0.0002237,2]
[374670952,1753405891020,-552.15,0.00022372,2]
[374670953,1753405891030,-676.46,0.00022372,2]
[374670954,1753405891040,-904.33,0.00022372,2]
[374670955,1753405891049,-1156.4,0.00022372,2]
[374670956,1753405891059,-500.81,0.00022372,2]
[374670957,1753405891071,-680.32,0.00022372,2]
[374670958,1753405891081,-460.0,0.00022372,2]
[374670959,1753405891092,-1029.72,0.00022372,2]
[374670960,1753405891101,-723.77,0.00022372,2]
[374670961,1753405891111,-770.55,0.00022372,2]
[374670962,1753405891120,-1464.77,0.00022372,2]
[374670963,1753405891129,-1451.71,0.00022372,2]
[374670964,1753405891139,-439.88729101,0.00022372,2]
[374670965,1753405891153,-600.06,0.00022372,2]
[374670966,1753405891163,-460.0,0.00022372,2]
[374670967,1753405891173,-649.29,0.00022372,2]
[374670968,1753405891183,-632.98,0.00022372,2]
[374670969,1753405891193,-700.52,0.00022372,2]
[374670970,1753405891203,-570.48,0.00022372,2]
[374670971,1753405891213,-1352.89,0.00022372,2]
[374670972,1753405891223,-1205.96,0.00022372,2]
[374670973,1753405891233,-696.97,0.00022372,2]
[374670974,1753405891243,-500.0,0.00022372,2]
[374670975,1753405891252,-542.27,0.00022372,2]
[374670976,1753405891262,-625.29,0.00022372,2]
[374670977,1753405891272,-2698.01,0.00022373,2]
[374670978,1753405891282,-550.66,0.00022373,2]
[374670979,1753405891291,-1284.55,0.00022373,2]
[374670980,1753405891301,-5026.12,0.00022373,2]
[374670981,1753405891310,-3778.26,0.00022373,2]
[374670982,1753405891320,-516.32,0.00022373,2]
[374670983,1753405891329,-159.672205,0.00022374,7]
[374670984,1753405891339,-159.672205,0.00022374,7]
[374670985,1753405891349,-614.02,0.00022374,2]
[374670986,1753405891358,-878.92,0.00022374,2]
[374670987,1753405891368,-843.8,0.00022374,2]
[374670988,1753405891378,-485.64,0.0002238,2]
[374670989,1753405891387,-1979.39,0.0002238,2]
[374670990,1753405891397,-631.28,0.0002238,2]
[374670991,1753405891406,-460.0,0.0002238,2]
[374670992,1753405891416,-942.95,0.0002238,2]
[374670993,1753405891429,-460.0,0.0002238,2]
[374670994,1753405891440,-497.3,0.0002238,2]
[374670995,1753405891450,-1681.11,0.0002238,2]
[374670996,1753405891459,-675.8,0.0002238,2]
[374670997,1753405891469,-460.0,0.0002238,2]
[374670998,1753405891478,-756.57,0.0002238,2]
[374670999,1753405891488,-821.38,0.0002238,2]
[374671000,1753405891498,-526.09,0.0002238,2]
[374671001,1753405891508,-759.71,0.0002238,2]
[374671002,1753405891517,-524.24,0.0002238,2]
[374671003,1753405891527,-460.0,0.0002238,2]
[374671004,1753405891537,-738.71,0.0002238,2]
[374671005,1753405891547,-1149.0,0.00022381,2]
[374671006,1753405891556,-1079.0,0.00022381,2]
[374671007,1753405891566,-546.94,0.00022383,2]
[374671008,1753405891576,-548.26,0.00022383,2]
[374671009,1753405891585,-460.0,0.00022383,2]
[374671010,1753405891595,-552.74663717,0.00022383,2]
[374671011,1753405891605,-932.05,0.00022383,2]
[374671012,1753405891614,-460.0,0.00022383,2]
[374671013,1753405891624,-243.051662,0.00022383,7]
[374671014,1753405891633,-698.6,0.00022383,2]
[374671015,1753405891643,-206.1693,0.00022383,7]
[374671016,1753405891652,-337.648918,0.00022383,7]
[374671017,1753405891662,-206.169306,0.00022383,7]
[374671018,1753405891671,-337.648916,0.00022383,7]
[374671019,1753405891681,-993.5,0.00022383,2]
[374671020,1753405891690,-362.441595,0.00022383,7]
[374671021,1753405891700,-646.526861,0.00022383,7]
[374671022,1753405891710,-646.526858,0.00022383,7]
[374671023,1753405891719,-362.441595,0.00022383,7]
[374671024,1753405891729,-12624.810388,0.000224,7]
[374671025,1753405891739,-164.9579112,0.00022411,2]
[374671026,1753405891749,-1628.65,0.00022465,2]
[374671027,1753405891758,-300.0,0.00022466,2]
[374671028,1753405891767,-308666.45098702,0.0002249,7]
[374671029,1753405891777,-187.479922,0.0002249,7]
[374671030,1753405891787,-187.479922,0.0002249,7]
[374671031,1753405891796,-151.0,0.0002249,7]
[374671032,1753405891806,-151.0,0.0002249,7]
[374671033,1753405891816,-159.672205,0.0002249,7]
[374671034,1753405891826,-159.672205,0.0002249,7]
[374671035,1753405891835,-191.267888,0.0002249,7]
[374671036,1753405891847,-232.905966,0.0002249,7]
[374671037,1753405891856,-232.905966,0.0002249,7]
[374671038,1753405891866,-151.0,0.0002249,7]
[374671039,1753405891875,-151.0,0.0002249,7]
[374671040,1753405891885,-151.0,0.0002249,7]
[374671041,1753405891895,-214.9,0.0002249,7]
[374671042,1753405891905,-214.9,0.0002249,7]
[374671043,1753405891915,-151.0,0.0002249,7]
[374671044,1753405891925,-170.561542,0.0002249,7]
[374671045,1753405891935,-170.561535,0.0002249,7]
[374671046,1753405891944,-839.14,0.00022499,2]
[374671047,1753405891954,-891.45,0.00022499,2]
[374671048,1753405891964,-3004.04,0.00022499,2]
[374671049,1753405891973,-808.95,0.00022499,2]
[374671050,1753405891983,-166.67,0.000225,2]
[374671051,1753405891993,-8109.86,0.00022501,2]
[374671052,1753405892003,-4205.78,0.00022501,2]
[374671053,1753405892013,-828.63,0.00022501,2]
[374671054,1753405892023,-398.50006846,0.00022501,2]
[374671055,1753405892032,-1045.24,0.00022501,2]
[374671056,1753405892041,-876.12,0.00022501,2]
[374671057,1753405892051,-3080.87,0.00022501,2]
[374671058,1753405892060,-630.25,0.00022501,2]
[374671059,1753405892071,-2623.82,0.00022501,2]
[374671060,1753405892081,-1224.91,0.00022501,2]
[374671061,1753405892092,-729.01,0.00022501,2]
[374671062,1753405892101,-829.26,0.00022503,2]
[374671063,1753405892111,-641.73,0.00022503,2]
[374671064,1753405892121,-797.44,0.00022503,2]
[374671065,1753405892130,-1009.95,0.00022503,2]
[374671066,1753405892140,-1461.37,0.00022503,2]
[374671067,1753405892152,-873.27,0.00022503,2]
[374671068,1753405892164,-720.64,0.00022503,2]
[374671069,1753405892173,-460.0,0.00022503,2]
[374671070,1753405892183,-478.9,0.00022503,2]
[374671071,1753405892194,-2863.12,0.00022503,2]
[374671072,1753405892206,-570.91,0.00022503,2]
[374671073,1753405892216,-460.0,0.00022503,2]
[374671074,1753405892226,-1139.2,0.00022503,2]
[374671075,1753405892236,-576.02,0.00022503,2]
[374671076,1753405892247,-831.56,0.00022503,2]
[374671077,1753405892257,-1082.99,0.00022503,2]
[374671078,1753405892267,-1185.33,0.00022503,2]
[374671079,1753405892276,-1580.14,0.00022503,2]
[374671080,1753405892286,-460.0,0.00022503,2]
[374671081,1753405892296,-842.02,0.00022503,2]
[374671082,1753405892306,-630.13,0.00022503,2]
[374671083,1753405892316,-460.0,0.00022503,2]
[374671084,1753405892327,-825.34,0.00022503,2]
[374671085,1753405892336,-851.14,0.00022524,2]
[374671086,1753405892348,-460.0,0.00022524,2]
[374671087,1753405892357,-1129.03,0.00022524,2]
[374671088,1753405892367,-460.0,0.00022524,2]
[374671089,1753405892378,-634.74,0.00022546,2]
[374671090,1753405892388,-460.0,0.00022546,2]
[374671091,1753405892397,-1638.24,0.00022546,2]
[374671092,1753405892407,-1280.01,0.00022546,2]
[374671093,1753405892416,-516.35,0.00022546,2]
[374671094,1753405892425,-632.2,0.00022546,2]
[374671095,1753405892435,-1029.2,0.00022546,2]
[374671096,1753405892444,-6996.8,0.00022546,2]
[374671097,1753405892453,-2763.92,0.00022546,2]
[374671098,1753405892463,-760.0,0.00022564,2]
[374671099,1753405892472,-269.329598,0.00022603,2]
[374671100,1753405892481,-470.3,0.00022625,2]
[374671101,1753405892490,-797.25,0.00022644,2]
[374671102,1753405892499,-1339.86,0.00022644,2]
[374671103,1753405892633,-1455.26,0.00022644,2]
[374671104,1753405892643,-646.53,0.00022644,2]
[374671105,1753405892653,-689.47,0.00022644,2]
[374671106,1753405892663,-1116.98,0.00022644,2]
[374671107,1753405892673,-2881.55,0.00022644,2]
[374671108,1753405892682,-4319.45,0.00022644,2]
[374671109,1753405892692,-4169.87,0.00022644,2]
[374671110,1753405892702,-2789.02,0.00022644,2]
[374671111,1753405892712,-1289.13,0.00022644,2]
[374671112,1753405892722,-552.15,0.00022646,2]
[374671113,1753405892731,-676.46,0.00022646,2]
[374671114,1753405892740,-904.33,0.00022646,2]
[374671115,1753405892750,-1156.4,0.00022646,2]
[374671116,1753405892759,-500.81,0.00022646,2]
[374671117,1753405892768,-680.32,0.00022646,2]
[374671118,1753405892778,-460.0,0.00022646,2]
[374671119,1753405892787,-1029.72,0.00022646,2]
[374671120,1753405892796,-723.77,0.00022646,2]
[374671121,1753405892806,-770.55,0.00022646,2]
[374671122,1753405892815,-1464.77,0.00022646,2]
[374671123,1753405892825,-838.2315687,0.00022646,2]
[374671124,1753405897780,-460.0,0.00017571,2]
[374671125,1753405897791,-138.76475506,0.00017614,2]
[374671126,1753405898092,-460.0,0.00017567,2]
[374671127,1753405898103,-460.0,0.00017571,2]
[374671128,1753405898115,-321.23524494,0.00017614,2]
[374671129,1753405898124,-460.0,0.00017716,2]
[374671130,1753405898134,-460.0,0.00017845,2]
[374671131,1753405898143,-460.0,0.00017888,2]
[374671132,1753405898154,-460.0,0.0001799,2]
[374671133,1753405898164,-460.0,0.00017996,2]
[374671134,1753405898173,-460.0,0.00018162,2]
[374671135,1753405898184,-460.0,0.00018264,2]
[374671136,1753405898193,-460.0,0.0001827,2]
[374671137,1753405898203,-460.0,0.00018436,2]
[374671138,1753405898212,-460.0,0.00018538,2]
[374671139,1753405898221,-460.0,0.00018544,2]
[374671140,1753405898231,-151.0,0.00018545,2]
[374671141,1753405898241,-873.2,0.00018667,2]
[374671142,1753405898250,-460.0,0.0001871,2]
[374671143,1753405898260,-460.0,0.00018812,2]
[374671144,1753405898270,-151.0,0.00018819,2]
[374671145,1753405898280,-160.0,0.00018858,2]
[374671146,1753405898290,-873.2,0.00018941,2]
[374671147,1753405898299,-460.0,0.00018984,2]
[374671148,1753405898309,-460.0,0.00019086,2]
[374671149,1753405898319,-198.0,0.00019093,2]
[374671150,1753405898329,-873.2,0.00019215,2]
[374671151,1753405898339,-460.0,0.00019258,2]
[374671152,1753405898348,-460.0,0.0001936,2]
[374671153,1753405898360,-873.2,0.00019489,2]
[374671154,1753405898370,-25000.0,0.00019551,2]
[374671155,1753405898380,-372.53,0.00019634,2]
[374671156,1753405898389,-873.2,0.00019763,2]
[374671157,1753405898400,-873.2,0.00020037,2]
[374671158,1753405898410,-873.2,0.00020311,2]
[374671159,1753405898419,-873.2,0.00020585,2]
[374671160,1753405898429,-386.05674435,0.00020828,2]
[374671161,1753405898439,-1609.8,0.00021955,2]
[374671162,1753405898449,-1609.8,0.00022229,2]
[374671163,1753405898458,-1609.8,0.00022503,2]
[374671164,1753405898468,-613.4784313,0.00022646,2]
[374671165,1753405898477,-600.06,0.00022646,2]
[374671166,1753405898487,-460.0,0.00022646,2]
[374671167,1753405898496,-649.29,0.00022646,2]
[374671168,1753405898506,-632.98,0.00022646,2]
[374671169,1753405898515,-700.52,0.00022646,2]
[374671170,1753405898526,-570.48,0.00022646,2]
[374671171,1753405898535,-1352.89,0.00022646,2]
[374671172,1753405898545,-1205.96,0.00022646,2]
[374671173,1753405898555,-696.97,0.00022646,2]
[374671174,1753405898564,-500.0,0.00022646,2]
[374671175,1753405898573,-542.27,0.00022646,2]
[374671176,1753405898584,-625.29,0.00022646,2]
[374671177,1753405898594,-2698.01,0.00022647,2]
[374671178,1753405898603,-550.66,0.00022647,2]
[374671179,1753405898614,-1284.55,0.00022647,2]
[374671180,1753405898623,-5026.12,0.00022647,2]
[374671181,1753405898633,-3778.26,0.00022647,2]
[374671182,1753405898642,-516.32,0.00022647,2]
[374671183,1753405898651,-614.02,0.00022648,2]
[374671184,1753405898661,-878.92,0.00022648,2]
[374671185,1753405898671,-843.8,0.00022648,2]
[374671186,1753405898680,-485.64,0.00022654,2]
[374671187,1753405898689,-1979.39,0.00022654,2]
[374671188,1753405898699,-631.28,0.00022654,2]
[374671189,1753405898709,-942.95,0.00022654,2]
[374671190,1753405898719,-158.65157881,0.00022654,2]
[374671191,1753405898728,-497.3,0.00022654,2]
[374671192,1753405898738,-1681.11,0.00022654,2]
[374671193,1753405898747,-675.8,0.00022654,2]
[374671194,1753405898756,-460.0,0.00022654,2]
[374671195,1753405898766,-756.57,0.00022654,2]
[374671196,1753405898775,-821.38,0.00022654,2]
[374671197,1753405898785,-526.09,0.00022654,2]
[374671198,1753405898794,-759.71,0.00022654,2]
[374671199,1753405898804,-524.24,0.00022654,2]
[374671200,1753405898814,-205.85073227,0.00022654,2]
[374671201,1753405898823,-738.71,0.00022654,2]
[374671202,1753405898832,-1149.0,0.00022655,2]
[374671203,1753405898842,-1079.0,0.00022655,2]